[Event "Early-Titled-Tuesday-Blitz-September-12-2023"]
[Site "Chess.com"]
[Date "2023.09.12"]
[Round "2"]
[White "Mariia89"]
[Black "S-Fazulyanov"]
[Result "0-1"]
[WhiteElo "1999"]
[BlackElo "2443"]
[TimeControl "180+1"]
[EndTime "8:17:18 PDT"]
[Termination "S-Fazulyanov won by resignation"]

1. d4 {[%clk 0:02:58.5]} 1... d5 {[%clk 0:02:59.5]} 2. c4 {[%clk 0:02:50.1]}
2... c6 {[%clk 0:02:59.1]} 3. e4 {[%clk 0:02:50]} 3... dxe4 {[%clk 0:02:56.7]}
4. Nc3 {[%clk 0:02:49.2]} 4... Nf6 {[%clk 0:02:56.4]} 5. Bg5 {[%clk 0:02:48.2]}
5... Bf5 {[%clk 0:02:53.1]} 6. Nge2 {[%clk 0:02:31.1]} 6... Bg6 {[%clk
0:02:48.2]} 7. Ng3 {[%clk 0:02:27.7]} 7... Nbd7 {[%clk 0:02:47]} 8. d5 {[%clk
0:02:11.6]} 8... e5 {[%clk 0:02:25]} 9. dxe6 {[%clk 0:02:05.3]} 9... fxe6 {[%clk
0:02:23.5]} 10. Be2 {[%clk 0:01:59.6]} 10... Qa5 {[%clk 0:02:18.6]} 11. Be3
{[%clk 0:01:56.1]} 11... Bb4 {[%clk 0:02:14]} 12. O-O {[%clk 0:01:49.7]} 12...
O-O {[%clk 0:02:10]} 13. Nb1 {[%clk 0:01:40.4]} 13... Ne5 {[%clk 0:02:05.1]} 14.
a3 {[%clk 0:01:35.6]} 14... Be7 {[%clk 0:01:53.3]} 15. Qc2 {[%clk 0:01:30.4]}
15... Nd3 {[%clk 0:01:48.8]} 16. Nc3 {[%clk 0:01:23.3]} 16... h5 {[%clk
0:01:32.5]} 17. Ngxe4 {[%clk 0:01:17.5]} 17... Nxe4 {[%clk 0:01:26.1]} 18. Bxd3
{[%clk 0:01:15]} 18... Nxc3 {[%clk 0:00:52.2]} 19. Bxg6 {[%clk 0:01:12]} 19...
Na4 {[%clk 0:00:44.9]} 20. Bxh5 {[%clk 0:01:08.6]} 20... Qxh5 {[%clk 0:00:39.2]}
21. Qxa4 {[%clk 0:01:06.4]} 21... Bd6 {[%clk 0:00:38.5]} 22. g3 {[%clk
0:01:02.1]} 22... Be5 {[%clk 0:00:35.3]} 23. Rab1 {[%clk 0:00:59.7]} 23... Rf7
{[%clk 0:00:26.9]} 24. Rfe1 {[%clk 0:00:51.2]} 24... a6 {[%clk 0:00:21.1]} 25.
Bb6 {[%clk 0:00:44.4]} 25... Qf5 {[%clk 0:00:16.2]} 26. Qc2 {[%clk 0:00:37.3]}
26... Qxc2 {[%clk 0:00:15]} 27. Rxe5 {[%clk 0:00:35.7]} 27... Qxb1+ {[%clk
0:00:13.7]} 0-1

[Event "Early-Titled-Tuesday-Blitz-September-12-2023"]
[Site "Chess.com"]
[Date "2023.09.12"]
[Round "2"]
[White "wonderfultime"]
[Black "temiksmozg"]
[Result "1-0"]
[WhiteElo "2999"]
[BlackElo "2629"]
[TimeControl "180+1"]
[EndTime "8:17:21 PDT"]
[Termination "wonderfultime won on time"]

1. d4 {[%clk 0:02:55.5]} 1... d5 {[%clk 0:02:59.5]} 2. Nf3 {[%clk 0:02:48.6]}
2... Nf6 {[%clk 0:02:58.3]} 3. Bf4 {[%clk 0:02:49.1]} 3... c5 {[%clk 0:02:58]}
4. c3 {[%clk 0:02:49.1]} 4... Nc6 {[%clk 0:02:56.6]} 5. e3 {[%clk 0:02:49.7]}
5... Qb6 {[%clk 0:02:56.5]} 6. Qc2 {[%clk 0:02:45.9]} 6... g6 {[%clk 0:02:45.1]}
7. Nbd2 {[%clk 0:02:45.7]} 7... c4 {[%clk 0:02:29.8]} 8. e4 {[%clk 0:02:39.3]}
8... Nxe4 {[%clk 0:02:22.1]} 9. Nxe4 {[%clk 0:02:38.4]} 9... Bf5 {[%clk
0:02:15.8]} 10. Nfd2 {[%clk 0:02:24.2]} 10... Bg7 {[%clk 0:01:54]} 11. Bxc4
{[%clk 0:01:32.7]} 11... dxc4 {[%clk 0:01:31.8]} 12. Nxc4 {[%clk 0:01:31.6]}
12... Qa6 {[%clk 0:01:20.2]} 13. Ne3 {[%clk 0:01:08.7]} 13... Bxd4 {[%clk
0:00:15.8]} 14. Nxf5 {[%clk 0:00:53.6]} 14... gxf5 {[%clk 0:00:14.7]} 15. Ng3
{[%clk 0:00:54.4]} 15... e5 {[%clk 0:00:05]} 16. Bg5 {[%clk 0:00:48.5]} 16... h6
{[%clk 0:00:02.3]} 17. Bf6 {[%clk 0:00:47.6]} 17... Rg8 {[%clk 0:00:02.8]} 18.
Qxf5 {[%clk 0:00:44.6]} 18... Bc5 {[%clk 0:00:02.6]} 19. Ne4 {[%clk 0:00:37.9]}
19... Qc4 {[%clk 0:00:02.3]} 20. b3 {[%clk 0:00:32.9]} 20... Qd5 {[%clk
0:00:01.5]} 21. Rd1 {[%clk 0:00:33.1]} 21... Bd4 {[%clk 0:00:01.6]} 22. cxd4
{[%clk 0:00:30.3]} 22... Qa5+ {[%clk 0:00:02.2]} 23. Rd2 {[%clk 0:00:29.8]} 1-0

[Event "Early-Titled-Tuesday-Blitz-September-12-2023"]
[Site "Chess.com"]
[Date "2023.09.12"]
[Round "2"]
[White "Just_Lucky_1"]
[Black "SchmakAttack"]
[Result "0-1"]
[WhiteElo "2540"]
[BlackElo "2779"]
[TimeControl "180+1"]
[EndTime "8:17:21 PDT"]
[Termination "SchmakAttack won by resignation"]

1. e4 {[%clk 0:03:00.9]} 1... e6 {[%clk 0:02:59]} 2. d4 {[%clk 0:03:00.6]} 2...
d5 {[%clk 0:02:59.5]} 3. Nc3 {[%clk 0:03:01.3]} 3... Nf6 {[%clk 0:02:58.5]} 4.
Bg5 {[%clk 0:03:01.8]} 4... dxe4 {[%clk 0:02:58.4]} 5. Nxe4 {[%clk 0:03:01.7]}
5... Be7 {[%clk 0:02:58.9]} 6. Bxf6 {[%clk 0:03:01.5]} 6... gxf6 {[%clk
0:02:59.1]} 7. Qd2 {[%clk 0:03:02.2]} 7... e5 {[%clk 0:02:50.2]} 8. O-O-O {[%clk
0:02:41.5]} 8... f5 {[%clk 0:02:49.1]} 9. dxe5 {[%clk 0:02:23.2]} 9... fxe4
{[%clk 0:02:48.4]} 10. Qf4 {[%clk 0:02:09.9]} 10... Bd7 {[%clk 0:02:33.6]} 11.
Nh3 {[%clk 0:02:03.1]} 11... Qc8 {[%clk 0:02:19.6]} 12. Ng5 {[%clk 0:01:52.7]}
12... Bxg5 {[%clk 0:02:11.1]} 13. Qxg5 {[%clk 0:01:53.6]} 13... Qd8 {[%clk
0:02:02.4]} 14. Qg7 {[%clk 0:01:48.7]} 14... Rf8 {[%clk 0:02:02.9]} 15. f4
{[%clk 0:00:28.6]} 15... exf3 {[%clk 0:01:48.2]} 16. gxf3 {[%clk 0:00:25.8]}
16... Qe7 {[%clk 0:01:44.1]} 17. f4 {[%clk 0:00:23]} 17... Nc6 {[%clk 0:01:41]}
18. Qxh7 {[%clk 0:00:13.4]} 18... O-O-O {[%clk 0:01:40.9]} 19. Bg2 {[%clk
0:00:13.1]} 19... f6 {[%clk 0:01:18.1]} 20. Qxe7 {[%clk 0:00:08.2]} 20... Nxe7
{[%clk 0:01:19]} 21. e6 {[%clk 0:00:05.5]} 21... Bxe6 {[%clk 0:01:14.2]} 22.
Rhe1 {[%clk 0:00:05.6]} 22... Rxd1+ {[%clk 0:01:11.3]} 23. Kxd1 {[%clk
0:00:06.3]} 23... Bg4+ {[%clk 0:01:11.3]} 24. Kc1 {[%clk 0:00:07]} 24... Ng6
{[%clk 0:01:09.7]} 25. h3 {[%clk 0:00:04.5]} 25... Bf5 {[%clk 0:01:05.7]} 26.
Bf3 {[%clk 0:00:02.7]} 26... Nxf4 {[%clk 0:01:02.4]} 27. Rf1 {[%clk 0:00:03.1]}
27... Bxh3 {[%clk 0:01:02.4]} 28. Rf2 {[%clk 0:00:02.8]} 28... Ne6 {[%clk
0:00:59]} 29. Bd5 {[%clk 0:00:01.9]} 29... Ng5 {[%clk 0:00:59.6]} 30. Rf4 {[%clk
0:00:01.3]} 30... c6 {[%clk 0:00:58.1]} 31. Bc4 {[%clk 0:00:01.8]} 31... Kc7
{[%clk 0:00:57.8]} 32. Bd3 {[%clk 0:00:02]} 32... Kd6 {[%clk 0:00:57.5]} 33. b4
{[%clk 0:00:02.6]} 33... Be6 {[%clk 0:00:55.4]} 34. Rf2 {[%clk 0:00:02.6]} 34...
c5 {[%clk 0:00:53.7]} 35. Kb2 {[%clk 0:00:03.5]} 35... cxb4 {[%clk 0:00:54.1]}
0-1

[Event "Early-Titled-Tuesday-Blitz-September-12-2023"]
[Site "Chess.com"]
[Date "2023.09.12"]
[Round "2"]
[White "disciplinedbrat"]
[Black "the-gambler"]
[Result "0-1"]
[WhiteElo "2342"]
[BlackElo "2544"]
[TimeControl "180+1"]
[EndTime "8:17:25 PDT"]
[Termination "the-gambler won by checkmate"]

1. d4 {[%clk 0:03:00.9]} 1... e6 {[%clk 0:02:58.9]} 2. Nf3 {[%clk 0:03:01.8]}
2... Nf6 {[%clk 0:02:58.7]} 3. e3 {[%clk 0:03:02.7]} 3... d5 {[%clk 0:02:58.8]}
4. Bd3 {[%clk 0:03:03.6]} 4... Nbd7 {[%clk 0:02:58.9]} 5. O-O {[%clk 0:03:04.3]}
5... c5 {[%clk 0:02:58.7]} 6. b3 {[%clk 0:03:05]} 6... Qc7 {[%clk 0:02:58.7]} 7.
Bb2 {[%clk 0:03:05.5]} 7... Bd6 {[%clk 0:02:58.5]} 8. h3 {[%clk 0:03:05.3]} 8...
e5 {[%clk 0:02:55.7]} 9. dxe5 {[%clk 0:03:04.2]} 9... Nxe5 {[%clk 0:02:55.5]}
10. Nxe5 {[%clk 0:03:03.4]} 10... Bxe5 {[%clk 0:02:56.4]} 11. Bxe5 {[%clk
0:03:02.9]} 11... Qxe5 {[%clk 0:02:56.1]} 12. Nd2 {[%clk 0:03:03.7]} 12... O-O
{[%clk 0:02:55.1]} 13. Nf3 {[%clk 0:03:04]} 13... Qc7 {[%clk 0:02:42.8]} 14. c4
{[%clk 0:03:04.3]} 14... dxc4 {[%clk 0:02:23.5]} 15. Bxc4 {[%clk 0:03:04]} 15...
Bf5 {[%clk 0:02:21.8]} 16. Qe2 {[%clk 0:02:59.9]} 16... Rad8 {[%clk 0:02:19.9]}
17. Rfd1 {[%clk 0:02:58.9]} 17... Ne4 {[%clk 0:02:17.9]} 18. Qb2 {[%clk
0:02:54.5]} 18... a6 {[%clk 0:02:09.1]} 19. a4 {[%clk 0:02:53.1]} 19... h6
{[%clk 0:02:03.1]} 20. Rac1 {[%clk 0:02:35.1]} 20... Nd6 {[%clk 0:01:36.1]} 21.
Bd5 {[%clk 0:02:31.5]} 21... Be4 {[%clk 0:01:33.5]} 22. b4 {[%clk 0:02:30.5]}
22... c4 {[%clk 0:01:25.1]} 23. Ne5 {[%clk 0:02:11.2]} 23... b5 {[%clk
0:01:22.6]} 24. axb5 {[%clk 0:02:05.8]} 24... axb5 {[%clk 0:01:22.3]} 25. Nc6
{[%clk 0:01:45.9]} 25... Rde8 {[%clk 0:00:54.9]} 26. Na5 {[%clk 0:01:28.8]}
26... Bxd5 {[%clk 0:00:36]} 27. Rxd5 {[%clk 0:01:27.8]} 27... Re6 {[%clk
0:00:25.1]} 28. Qd4 {[%clk 0:01:22.1]} 28... Rb8 {[%clk 0:00:20.5]} 29. Rd1
{[%clk 0:01:17.7]} 29... Ne4 {[%clk 0:00:20.4]} 30. Rd7 {[%clk 0:01:09.5]} 30...
Qc8 {[%clk 0:00:17]} 31. Qa7 {[%clk 0:01:08.3]} 31... Qf8 {[%clk 0:00:14.5]} 32.
Rxf7 {[%clk 0:00:52.7]} 32... Qxf7 {[%clk 0:00:14.5]} 33. Qa8 {[%clk 0:00:53.1]}
33... Kh7 {[%clk 0:00:15]} 34. Qxb8 {[%clk 0:00:53.1]} 34... Qxf2+ {[%clk
0:00:14.5]} 35. Kh2 {[%clk 0:00:50.3]} 35... Rg6 {[%clk 0:00:13]} 36. Rd8 {[%clk
0:00:46.6]} 36... Qxg2# {[%clk 0:00:12.2]} 0-1

[Event "Early-Titled-Tuesday-Blitz-September-12-2023"]
[Site "Chess.com"]
[Date "2023.09.12"]
[Round "2"]
[White "Mikayel99"]
[Black "jk13"]
[Result "0-1"]
[WhiteElo "2334"]
[BlackElo "2707"]
[TimeControl "180+1"]
[EndTime "8:17:26 PDT"]
[Termination "jk13 won by resignation"]

1. e4 {[%clk 0:03:00.9]} 1... c5 {[%clk 0:02:59.4]} 2. Nf3 {[%clk 0:03:00.8]}
2... e6 {[%clk 0:02:59.3]} 3. d4 {[%clk 0:02:59.3]} 3... cxd4 {[%clk 0:03:00.2]}
4. Nxd4 {[%clk 0:03:00]} 4... a6 {[%clk 0:03:00.7]} 5. Bd3 {[%clk 0:02:59.8]}
5... Qc7 {[%clk 0:03:00.9]} 6. O-O {[%clk 0:02:56.2]} 6... Nf6 {[%clk
0:03:01.5]} 7. Kh1 {[%clk 0:02:47.5]} 7... Nc6 {[%clk 0:03:00.7]} 8. Nxc6 {[%clk
0:02:46.6]} 8... dxc6 {[%clk 0:03:00.9]} 9. f4 {[%clk 0:02:45.1]} 9... e5 {[%clk
0:03:01.6]} 10. Qe1 {[%clk 0:02:41.6]} 10... Bd6 {[%clk 0:02:56.4]} 11. Nd2
{[%clk 0:02:37.3]} 11... b5 {[%clk 0:02:48.6]} 12. Nf3 {[%clk 0:02:03.7]} 12...
Nd7 {[%clk 0:02:47.1]} 13. Qg3 {[%clk 0:01:46.3]} 13... O-O {[%clk 0:02:38.1]}
14. fxe5 {[%clk 0:01:46.5]} 14... Nxe5 {[%clk 0:02:38.3]} 15. Bf4 {[%clk
0:01:41.4]} 15... Re8 {[%clk 0:02:29.6]} 16. a4 {[%clk 0:01:12.8]} 16... Rb8
{[%clk 0:02:12.5]} 17. axb5 {[%clk 0:00:57.6]} 17... axb5 {[%clk 0:02:13.4]} 18.
Nd4 {[%clk 0:00:52.4]} 18... f6 {[%clk 0:01:58.3]} 19. Nf5 {[%clk 0:00:20.4]}
19... Bxf5 {[%clk 0:01:56.3]} 20. exf5 {[%clk 0:00:21.3]} 20... Rbd8 {[%clk
0:01:45.7]} 21. Bxe5 {[%clk 0:00:21.7]} 21... Bxe5 {[%clk 0:01:42.9]} 22. Qf2
{[%clk 0:00:22.2]} 22... Bd4 {[%clk 0:01:36.8]} 23. Qf3 {[%clk 0:00:22]} 23...
Bxb2 {[%clk 0:01:27.4]} 24. Ra6 {[%clk 0:00:22.5]} 24... Rd6 {[%clk 0:01:21]}
25. Be4 {[%clk 0:00:18.1]} 25... c5 {[%clk 0:01:01.7]} 26. Bd5+ {[%clk
0:00:15.5]} 26... Kh8 {[%clk 0:01:02.1]} 27. Be6 {[%clk 0:00:11.7]} 27... Rxa6
{[%clk 0:01:00.6]} 28. Qh5 {[%clk 0:00:10.1]} 28... Raxe6 {[%clk 0:00:52.6]} 29.
fxe6 {[%clk 0:00:08.8]} 29... Rxe6 {[%clk 0:00:52.9]} 30. Qd5 {[%clk 0:00:09]}
30... Re8 {[%clk 0:00:49.3]} 31. Qb3 {[%clk 0:00:08.4]} 31... Be5 {[%clk
0:00:46.4]} 32. Qxb5 {[%clk 0:00:08.4]} 32... Rb8 {[%clk 0:00:47.1]} 33. Qd3
{[%clk 0:00:07]} 33... Bxh2 {[%clk 0:00:46.4]} 34. Rd1 {[%clk 0:00:04.1]} 34...
Be5 {[%clk 0:00:46.2]} 35. Qf5 {[%clk 0:00:04.6]} 35... h6 {[%clk 0:00:45.8]}
36. Kg1 {[%clk 0:00:03.6]} 36... Bd4+ {[%clk 0:00:44.9]} 37. Kh1 {[%clk
0:00:04.3]} 37... Qg3 {[%clk 0:00:44.6]} 0-1

[Event "Early-Titled-Tuesday-Blitz-September-12-2023"]
[Site "Chess.com"]
[Date "2023.09.12"]
[Round "2"]
[White "Arteler"]
[Black "Roman_Ovetchkin"]
[Result "1-0"]
[WhiteElo "2422"]
[BlackElo "2628"]
[TimeControl "180+1"]
[EndTime "8:17:26 PDT"]
[Termination "Arteler won by resignation"]

1. e4 {[%clk 0:02:58.1]} 1... c6 {[%clk 0:02:59.9]} 2. d4 {[%clk 0:02:48.7]}
2... d5 {[%clk 0:03:00.8]} 3. exd5 {[%clk 0:02:49.6]} 3... cxd5 {[%clk
0:03:00.1]} 4. c4 {[%clk 0:02:50.5]} 4... Nf6 {[%clk 0:03:00]} 5. Nc3 {[%clk
0:02:51.2]} 5... g6 {[%clk 0:02:59.7]} 6. Qb3 {[%clk 0:02:50]} 6... Bg7 {[%clk
0:02:59.7]} 7. cxd5 {[%clk 0:02:50.7]} 7... O-O {[%clk 0:03:00.3]} 8. Be2 {[%clk
0:02:51]} 8... Nbd7 {[%clk 0:03:00.4]} 9. Bf3 {[%clk 0:02:51.7]} 9... Nb6 {[%clk
0:03:01.1]} 10. Nge2 {[%clk 0:02:49.3]} 10... Bg4 {[%clk 0:03:01.5]} 11. Bxg4
{[%clk 0:02:46.7]} 11... Nxg4 {[%clk 0:03:02.4]} 12. Bf4 {[%clk 0:02:32.3]}
12... Nf6 {[%clk 0:02:55.9]} 13. d6 {[%clk 0:02:32.8]} 13... exd6 {[%clk
0:02:54.3]} 14. O-O {[%clk 0:02:33.1]} 14... Re8 {[%clk 0:02:49.1]} 15. Rfe1
{[%clk 0:02:18.4]} 15... Qd7 {[%clk 0:02:44.8]} 16. a4 {[%clk 0:02:04.3]} 16...
Qe6 {[%clk 0:02:22.4]} 17. Qb4 {[%clk 0:01:38.1]} 17... Rad8 {[%clk 0:02:15.9]}
18. Bg5 {[%clk 0:01:21.2]} 18... Rd7 {[%clk 0:02:02.8]} 19. a5 {[%clk
0:01:02.2]} 19... Nbd5 {[%clk 0:01:49.3]} 20. Nxd5 {[%clk 0:00:50.7]} 20... Nxd5
{[%clk 0:01:42.8]} 21. Qd2 {[%clk 0:00:51]} 21... Rc8 {[%clk 0:01:19.6]} 22. Nc3
{[%clk 0:00:42.4]} 22... Qf5 {[%clk 0:01:17.7]} 23. Bh4 {[%clk 0:00:25.4]} 23...
Nxc3 {[%clk 0:01:10.4]} 24. bxc3 {[%clk 0:00:26.3]} 24... Rdc7 {[%clk
0:01:05.4]} 25. Ra3 {[%clk 0:00:26.4]} 25... h6 {[%clk 0:01:00.8]} 26. Bg3
{[%clk 0:00:26.7]} 26... Qd5 {[%clk 0:01:00.9]} 27. h3 {[%clk 0:00:26.7]} 27...
Kh7 {[%clk 0:00:55.6]} 28. Re3 {[%clk 0:00:25.4]} 28... Bf6 {[%clk 0:00:50.3]}
29. Qe2 {[%clk 0:00:24.2]} 29... Kg7 {[%clk 0:00:47.7]} 30. Rf3 {[%clk
0:00:20.4]} 30... Rc6 {[%clk 0:00:43]} 31. Qe3 {[%clk 0:00:18.2]} 31... Qf5
{[%clk 0:00:40.6]} 32. Rxf5 {[%clk 0:00:17.9]} 1-0

[Event "Early-Titled-Tuesday-Blitz-September-12-2023"]
[Site "Chess.com"]
[Date "2023.09.12"]
[Round "2"]
[White "Machteld145"]
[Black "DKmirl"]
[Result "1-0"]
[WhiteElo "2498"]
[BlackElo "2262"]
[TimeControl "180+1"]
[EndTime "8:17:26 PDT"]
[Termination "Machteld145 won by checkmate"]

1. e4 {[%clk 0:03:00.9]} 1... c5 {[%clk 0:02:53.9]} 2. Nf3 {[%clk 0:03:00.7]}
2... Nc6 {[%clk 0:02:53]} 3. Bb5 {[%clk 0:02:53.1]} 3... g6 {[%clk 0:02:52.4]}
4. O-O {[%clk 0:02:52]} 4... Bg7 {[%clk 0:02:52.3]} 5. c3 {[%clk 0:02:52.6]}
5... Nf6 {[%clk 0:02:51.9]} 6. e5 {[%clk 0:02:50.9]} 6... Nd5 {[%clk 0:02:51.8]}
7. d4 {[%clk 0:02:51]} 7... cxd4 {[%clk 0:02:47.4]} 8. cxd4 {[%clk 0:02:51.9]}
8... O-O {[%clk 0:02:46.1]} 9. Nc3 {[%clk 0:02:48.6]} 9... Nc7 {[%clk
0:02:40.6]} 10. Bc4 {[%clk 0:02:46.2]} 10... d5 {[%clk 0:02:33]} 11. Bb3 {[%clk
0:02:38.4]} 11... Bg4 {[%clk 0:02:25]} 12. Be3 {[%clk 0:02:33.9]} 12... Na5
{[%clk 0:02:18.2]} 13. h3 {[%clk 0:02:19.4]} 13... Nxb3 {[%clk 0:02:17.1]} 14.
axb3 {[%clk 0:02:18.9]} 14... Bd7 {[%clk 0:02:10]} 15. Re1 {[%clk 0:02:15.7]}
15... Bc6 {[%clk 0:02:09.8]} 16. Qd2 {[%clk 0:02:15]} 16... Re8 {[%clk
0:02:06.9]} 17. Na4 {[%clk 0:02:11.9]} 17... Ne6 {[%clk 0:01:59.6]} 18. Qb4
{[%clk 0:02:05.4]} 18... Rc8 {[%clk 0:01:46.9]} 19. Nc5 {[%clk 0:02:03.1]} 19...
Nxc5 {[%clk 0:01:46]} 20. Qxc5 {[%clk 0:02:03.3]} 20... b6 {[%clk 0:01:37.6]}
21. Qb4 {[%clk 0:02:02.8]} 21... a5 {[%clk 0:01:37.3]} 22. Qd2 {[%clk
0:02:01.8]} 22... Bb5 {[%clk 0:01:29]} 23. Bh6 {[%clk 0:01:57.4]} 23... Bh8
{[%clk 0:01:08.9]} 24. e6 {[%clk 0:01:56]} 24... f6 {[%clk 0:00:41.8]} 25. Rac1
{[%clk 0:01:50.8]} 25... Qd6 {[%clk 0:00:39.7]} 26. Bf4 {[%clk 0:01:48.7]} 26...
Qd8 {[%clk 0:00:33.7]} 27. b4 {[%clk 0:01:42.3]} 27... a4 {[%clk 0:00:32.3]} 28.
Rc3 {[%clk 0:01:40.5]} 28... Rc4 {[%clk 0:00:28.4]} 29. Rxc4 {[%clk 0:01:38.7]}
29... Bxc4 {[%clk 0:00:20.3]} 30. Qc2 {[%clk 0:01:38.8]} 30... b5 {[%clk
0:00:20.1]} 31. Nh4 {[%clk 0:01:34.9]} 31... Bg7 {[%clk 0:00:19.5]} 32. Nxg6
{[%clk 0:01:33.4]} 32... Bb3 {[%clk 0:00:18.3]} 33. Qf5 {[%clk 0:01:27.3]} 33...
Qb6 {[%clk 0:00:10.7]} 34. Qh5 {[%clk 0:01:12.3]} 34... Qa7 {[%clk 0:00:01.9]}
35. Nh4 {[%clk 0:01:08.8]} 35... Rf8 {[%clk 0:00:01.5]} 36. Nf5 {[%clk 0:01:09]}
36... Kh8 {[%clk 0:00:01.3]} 37. Nxg7 {[%clk 0:01:01.9]} 37... Kxg7 {[%clk
0:00:02.2]} 38. Bh6+ {[%clk 0:01:00.9]} 38... Kg8 {[%clk 0:00:02.5]} 39. Qg4+
{[%clk 0:01:00.7]} 39... Kh8 {[%clk 0:00:02.3]} 40. Qg7# {[%clk 0:01:00.4]} 1-0

[Event "Early-Titled-Tuesday-Blitz-September-12-2023"]
[Site "Chess.com"]
[Date "2023.09.12"]
[Round "2"]
[White "FredddieCroderg"]
[Black "YEIKO2017"]
[Result "0-1"]
[WhiteElo "2273"]
[BlackElo "2508"]
[TimeControl "180+1"]
[EndTime "8:17:28 PDT"]
[Termination "YEIKO2017 won by resignation"]

1. e4 {[%clk 0:03:00.9]} 1... c5 {[%clk 0:03:00]} 2. Nf3 {[%clk 0:02:58]} 2...
d6 {[%clk 0:03:00.3]} 3. d4 {[%clk 0:02:57.2]} 3... cxd4 {[%clk 0:03:01.2]} 4.
Nxd4 {[%clk 0:02:57.8]} 4... Nf6 {[%clk 0:03:01.2]} 5. Nc3 {[%clk 0:02:57.5]}
5... g6 {[%clk 0:03:01.7]} 6. Be3 {[%clk 0:02:56]} 6... Bg7 {[%clk 0:03:01.3]}
7. f3 {[%clk 0:02:56.6]} 7... O-O {[%clk 0:03:01.8]} 8. Qd2 {[%clk 0:02:57.3]}
8... Nc6 {[%clk 0:03:01.9]} 9. O-O-O {[%clk 0:02:57.8]} 9... d5 {[%clk
0:03:02.1]} 10. exd5 {[%clk 0:02:58.1]} 10... Nxd5 {[%clk 0:03:02.8]} 11. Nxc6
{[%clk 0:02:58.7]} 11... bxc6 {[%clk 0:03:03.3]} 12. Bd4 {[%clk 0:02:59.3]}
12... Bxd4 {[%clk 0:03:03.2]} 13. Qxd4 {[%clk 0:02:59.2]} 13... Qb6 {[%clk
0:03:03.7]} 14. Na4 {[%clk 0:02:57.8]} 14... Qa5 {[%clk 0:03:03.3]} 15. b3
{[%clk 0:02:54.4]} 15... Bf5 {[%clk 0:03:02.5]} 16. Qc5 {[%clk 0:02:35.6]} 16...
Qxc5 {[%clk 0:02:57.4]} 17. Nxc5 {[%clk 0:02:36.5]} 17... Rad8 {[%clk
0:02:53.9]} 18. Bd3 {[%clk 0:02:23.5]} 18... Bxd3 {[%clk 0:02:46]} 19. Rxd3
{[%clk 0:02:24.4]} 19... Nf4 {[%clk 0:02:40.3]} 20. Rxd8 {[%clk 0:02:17.1]}
20... Rxd8 {[%clk 0:02:41.2]} 21. g3 {[%clk 0:02:15.3]} 21... Rd5 {[%clk
0:02:25.7]} 22. Ne4 {[%clk 0:02:03.7]} 22... Ne2+ {[%clk 0:02:16.8]} 23. Kb2
{[%clk 0:02:02.5]} 23... Nd4 {[%clk 0:02:08.5]} 24. f4 {[%clk 0:01:58.6]} 24...
f5 {[%clk 0:02:00.6]} 25. Nc3 {[%clk 0:01:57.3]} 25... Rd6 {[%clk 0:01:55.3]}
26. Re1 {[%clk 0:01:54.8]} 26... Kf7 {[%clk 0:01:53.1]} 27. Na4 {[%clk
0:01:50.1]} 27... Kf6 {[%clk 0:01:43.3]} 28. Nc5 {[%clk 0:01:50]} 28... h6
{[%clk 0:01:41]} 29. Nd3 {[%clk 0:01:50]} 29... g5 {[%clk 0:01:39.4]} 30. Rf1
{[%clk 0:01:40.8]} 30... g4 {[%clk 0:01:35.1]} 31. Ne5 {[%clk 0:01:39.5]} 31...
c5 {[%clk 0:01:28.8]} 32. Rf2 {[%clk 0:01:37.8]} 32... h5 {[%clk 0:01:24]} 33.
Nc4 {[%clk 0:01:29.3]} 33... Rd8 {[%clk 0:01:21.5]} 34. c3 {[%clk 0:01:27.2]}
34... Nf3 {[%clk 0:01:21.5]} 35. Kc2 {[%clk 0:01:25.6]} 35... h4 {[%clk
0:01:21.2]} 36. b4 {[%clk 0:01:18.2]} 36... cxb4 {[%clk 0:01:19.1]} 37. cxb4
{[%clk 0:01:19.1]} 37... Rc8 {[%clk 0:01:15.5]} 38. Kc3 {[%clk 0:01:14]} 38...
e5 {[%clk 0:01:13.7]} 39. fxe5+ {[%clk 0:01:06.9]} 39... Nxe5 {[%clk 0:01:13.3]}
40. Rf4 {[%clk 0:01:07.5]} 40... Nxc4 {[%clk 0:01:13.5]} 41. Rxc4 {[%clk
0:01:07.5]} 41... Rxc4+ {[%clk 0:01:14.1]} 42. Kxc4 {[%clk 0:01:08.4]} 42... f4
{[%clk 0:01:14.7]} 43. gxh4 {[%clk 0:00:03.5]} 43... g3 {[%clk 0:01:12.5]} 44.
hxg3 {[%clk 0:00:03.5]} 44... fxg3 {[%clk 0:01:12.6]} 45. Kd3 {[%clk 0:00:03.5]}
45... g2 {[%clk 0:01:12.8]} 46. Ke2 {[%clk 0:00:04.1]} 46... g1=Q {[%clk
0:01:13]} 0-1

[Event "Early-Titled-Tuesday-Blitz-September-12-2023"]
[Site "Chess.com"]
[Date "2023.09.12"]
[Round "2"]
[White "WaybackBoy"]
[Black "Jenia84"]
[Result "1-0"]
[WhiteElo "2719"]
[BlackElo "2378"]
[TimeControl "180+1"]
[EndTime "8:17:29 PDT"]
[Termination "WaybackBoy won on time"]

1. d4 {[%clk 0:03:00.1]} 1... Nf6 {[%clk 0:02:59.4]} 2. c4 {[%clk 0:03:00.6]}
2... e6 {[%clk 0:02:59.8]} 3. g3 {[%clk 0:03:01]} 3... d5 {[%clk 0:02:59.3]} 4.
Bg2 {[%clk 0:03:01.2]} 4... Bb4+ {[%clk 0:02:59.8]} 5. Nd2 {[%clk 0:03:00.7]}
5... O-O {[%clk 0:02:56.5]} 6. Nf3 {[%clk 0:03:00.4]} 6... c5 {[%clk 0:02:55.5]}
7. cxd5 {[%clk 0:02:51.1]} 7... exd5 {[%clk 0:02:54.1]} 8. a3 {[%clk 0:02:48.6]}
8... Bxd2+ {[%clk 0:02:49.6]} 9. Bxd2 {[%clk 0:02:49.4]} 9... Ne4 {[%clk
0:02:45.4]} 10. dxc5 {[%clk 0:02:47.2]} 10... Nxc5 {[%clk 0:02:38.1]} 11. O-O
{[%clk 0:02:46.3]} 11... Nc6 {[%clk 0:02:34.4]} 12. Rc1 {[%clk 0:02:46]} 12...
Ne4 {[%clk 0:02:34.2]} 13. Be3 {[%clk 0:02:46.7]} 13... Be6 {[%clk 0:02:28.5]}
14. Nd4 {[%clk 0:02:46.7]} 14... Nxd4 {[%clk 0:02:25.4]} 15. Qxd4 {[%clk
0:02:45.1]} 15... Qa5 {[%clk 0:02:11]} 16. h4 {[%clk 0:02:24.4]} 16... Qa6
{[%clk 0:02:05.9]} 17. Bf3 {[%clk 0:02:22.1]} 17... b6 {[%clk 0:01:49.2]} 18. h5
{[%clk 0:02:17.3]} 18... h6 {[%clk 0:01:46.7]} 19. Qe5 {[%clk 0:02:10.9]} 19...
Rac8 {[%clk 0:01:40.8]} 20. Bd4 {[%clk 0:02:09.9]} 20... Nf6 {[%clk 0:01:33.4]}
21. Qf4 {[%clk 0:02:01.4]} 21... Nd7 {[%clk 0:01:21.8]} 22. Qd6 {[%clk
0:01:43.1]} 22... Rxc1 {[%clk 0:01:14.6]} 23. Rxc1 {[%clk 0:01:44]} 23... Rc8
{[%clk 0:01:13.5]} 24. Rc3 {[%clk 0:01:37.3]} 24... Rxc3 {[%clk 0:01:09.1]} 25.
Bxc3 {[%clk 0:01:38.2]} 25... Qc4 {[%clk 0:01:04.6]} 26. e3 {[%clk 0:01:28.4]}
26... Qc5 {[%clk 0:00:50.6]} 27. Qf4 {[%clk 0:01:25.3]} 27... Qc4 {[%clk
0:00:40.5]} 28. Bd4 {[%clk 0:01:24.1]} 28... Qd3 {[%clk 0:00:28.7]} 29. Kg2
{[%clk 0:01:19.9]} 29... Qb1 {[%clk 0:00:10]} 30. g4 {[%clk 0:01:19.1]} 30...
Qd3 {[%clk 0:00:07]} 31. Qc7 {[%clk 0:01:18.9]} 31... Nf6 {[%clk 0:00:03.1]} 32.
Bxf6 {[%clk 0:01:07.2]} 32... gxf6 {[%clk 0:00:03.1]} 33. Qxa7 {[%clk
0:01:07.5]} 33... Qc4 {[%clk 0:00:02.4]} 34. Qxb6 {[%clk 0:01:00.6]} 34... Bxg4
{[%clk 0:00:02.3]} 35. Qxf6 {[%clk 0:01:01.3]} 35... Bxf3+ {[%clk 0:00:01.9]}
36. Qxf3 {[%clk 0:01:01.2]} 36... Qd3 {[%clk 0:00:01.9]} 37. Qg4+ {[%clk
0:00:57.3]} 37... Kf8 {[%clk 0:00:02.4]} 38. Qc8+ {[%clk 0:00:56.6]} 38... Kg7
{[%clk 0:00:02.3]} 39. Qc3+ {[%clk 0:00:54.5]} 1-0